Cogmind - Beta 10.2 --- EXPLORER MODE // 2021.09.18 @ 23:22:34 Player: Arctrect Result: Destroyed by L-41 Fighter with Axe Performance ------------- Evolutions (3) 1500 Regions Visited (13) 2600 Robots Destroyed (187) 935 Value Destroyed (7879) 7879 Prototype IDs (14) 280 Alien Tech Used (0) 0 Bonus (2055) 2055 TOTAL SCORE: 15249 Bonus ------- High Alert Combat Kills 171 Follower Combat Kills 166 Entered Garrisons 400 Used RIF Installer 1000 Aligned with FarCom 300 Met Data Miner 300 Friendly Fire -282 Cogmind --------- Core Integrity 0/700 Matter 51/300 Energy 137/150 System Corruption 6% Temperature Cool (487) Movement Core (250) Ox4 Location -6/Proximity Caves Parts ------- > --- POWER (2) -------- Micro Nuclear Core > --- PROPULSION (5) --- (None) > --- UTILITY (3) ------ Small Storage Unit Improved Salvage Targeting Computer > --- WEAPON (4) ------- Autogun > --- INVENTORY (6) ---- Light Treads Flak Gun Heavy Machine Gun Slug Cannon Mini Grenade Launcher Peak State ------------ > --- POWER ------------ Deuterium Engine Light Nuclear Core > --- PROPULSION ------- Titanium Leg Titanium Leg Titanium Leg > --- UTILITY ---------- Large Storage Unit High-capacity Matter Pod Advanced Targeting Computer > --- WEAPON ----------- AWS/Autocannon Makeshift Hammer > --- INVENTORY -------- Nuclear Core Titanium Leg Wheel Compact Wheel Armored Wheel Armored Wheel Improved Heat Sink Recoil Stabilizer Electrolaser Missile Launcher [Rating: 56] Favorites ----------- Power Micro Nuclear Core Engine Light Ion Engine Power Core Micro Nuclear Core Propulsion Armored Treads Treads Armored Treads Leg Aluminum Leg Wheel Armored Wheel Hover Unit Gravmag System Flight Unit Flight Unit Utility Large Storage Unit Device Improved Cooling System Storage Large Storage Unit Processor Advanced Targeting Computer Protection Core Shielding Weapon Makeshift Hammer Energy Gun Heavy Laser Energy Cannon Ion Cannon Ballistic Gun Flak Gun Ballistic Cannon Slug Cannon Launcher Rocket Launcher Special Weapon Mining Laser Impact Weapon Makeshift Hammer Build | -11 -10 -10 -10 -9 -8 -8 -8 -8 -7 -7 -7 -7 -6 ------- Run | Scr Mat Min Exi Min Mat Gar Mat Gar Fac Low Low Dat Pro Slots Evolved 7 | . 1 . . . 4 . . . 2 . . . . Power 1 | . . . . . 1 . . . . . . . . Propulsion 3 | . . . . . 1 . . . 2 . . . . Utility 1 | . 1 . . . . . . . . . . . . Weapon 2 | . . . . . 2 . . . . . . . . Parts Attached 93 | 5 3 1 5 . 18 . 11 15 19 10 5 . 1 Power 18 | 1 . . . . 5 . 3 5 4 . . . . Engine 10 | 1 . . . . 3 . 1 3 2 . . . . Core 8 | . . . . . 2 . 2 2 2 . . . . Reactor . | . . . . . . . . . . . . . . Propulsion 27 | 2 . . . . 5 . 5 7 4 4 . . . Treads 7 | . . . . . . . . . 3 4 . . . Leg 11 | 2 . . . . 2 . 3 4 . . . . . Wheel 5 | . . . . . 3 . 2 . . . . . . Hover 1 | . . . . . . . . . 1 . . . . Flight 3 | . . . . . . . . 3 . . . . . Utility 13 | 2 1 . 3 . 1 . . . 3 3 . . . Device 2 | . . . . . . . . . 1 1 . . . Storage 4 | . 1 . 2 . . . . . . 1 . . . Processor 6 | 1 . . 1 . 1 . . . 2 1 . . . Hackware . | . . . . . . . . . . . . . . Protection 1 | 1 . . . . . . . . . . . . . Artifact . | . . . . . . . . . . . . . . Weapon 35 | . 2 1 2 . 7 . 3 3 8 3 5 . 1 Energy Gun 6 | . . . . . 1 . 1 . 3 1 . . . Energy Cannon 2 | . . . . . . . . . 2 . . . . Ballistic Gun 12 | . 2 . . . 1 . 1 3 1 1 2 . 1 Ballistic Cannon 7 | . . . . . 3 . . . 1 . 3 . . Launcher 5 | . . . 1 . 1 . 1 . 1 1 . . . Special Weapon 2 | . . 1 1 . . . . . . . . . . Impact Weapon 1 | . . . . . 1 . . . . . . . . Slashing Weapon . | . . . . . . . . . . . . . . Piercing Weapon . | . . . . . . . . . . . . . . Special Melee Weapon . | . . . . . . . . . . . . . . Unidentified Prototypes 1 | . . . . . 1 . . . . . . . . Parts Lost 26 | . . 3 . . 5 1 . 5 2 2 . . 8 Power 3 | . . . . . 1 . . 1 . . . . 1 Propulsion 10 | . . 1 . . 1 1 . 1 2 1 . . 3 Utility 3 | . . 1 . . . . . . . 1 . . 1 Weapon 10 | . . 1 . . 3 . . 3 . . . . 3 Highest Loss Streak 8 | . . 3 . . 5 1 . 3 1 1 . . 8 Average Slot Usage (%) 90 | . 97 93 86 87 83 81 85 92 89 95 100 100 98 Engine 6 | . 12 12 12 12 8 8 8 11 . . . . . Core 8 | . . . . . 6 8 8 4 13 14 14 14 13 Treads 10 | . . . . . . . . . 18 27 35 35 34 Leg 8 | . 25 22 12 12 10 . 11 21 . . . . . Wheel 4 | . . . . . 11 23 11 . . . . . . Hover 1 | . . . . . . . . . 6 4 . . . Flight 1 | . . . . . . . . 3 7 . . . . Device 1 | . . . . . . . . . 6 5 . . . Storage 11 | . 12 12 21 25 16 16 16 14 . 1 7 7 7 Processor 10 | . 12 10 11 12 8 8 8 7 10 12 14 14 13 Protection 1 | . 12 12 3 . . . . . . . . . . Energy Gun 3 | . . . . . 2 . 2 1 10 12 . . . Ballistic Gun 7 | . 22 20 . . 2 . 1 18 5 12 12 7 6 Ballistic Cannon 4 | . . . . . 4 8 5 . 4 1 11 21 20 Launcher 2 | . . . 11 12 2 . 2 1 2 1 3 . . Special Weapon 1 | . . 2 12 12 . . . . . . . . . Impact Weapon 3 | . . . . . 7 8 8 7 . . . . . Naked Turns . | . . . . . . . . . . . . . . Heaviest Build 97 | 4 15 15 28 28 97 97 97 45 35 36 41 41 41 Greatest Support 100 | 20 20 20 10 10 36 36 51 51 60 100 100 100 100 Greatest Overweight (x) 14 | 1 . 1 2 2 9 4 4 14 6 . . . . Average Overweight (x) . | . . . 1 2 2 2 1 . . . . . . Largest Inventory Capacity 10 | 4 8 8 10 10 10 10 10 10 4 6 6 6 6 Average Capacity 7 | 4 8 8 9 10 10 10 10 9 4 4 6 6 6 Most Carried 10 | 3 4 7 9 10 10 10 10 10 4 5 5 5 6 Average Carried 6 | 1 2 6 6 9 7 10 9 9 3 3 4 5 5 Final Capacity 10 | 4 8 8 10 10 10 10 10 4 4 6 6 6 6 Final Carried 10 | 3 4 7 9 10 10 10 10 . 4 3 5 5 5 Class Distribution -------------------- 35% | Hacker-Mutant 35% | Hacker-Skirmisher 13% | Hacker-Gunner 11% | Derelict-Gunner Dominant Class ---------------- Hacker-Mutant | -10/Materials Hacker-Mutant | -10/Mines Hacker-Mutant | -10/Exiles Hacker-Mutant | -9/Mines Hacker-Skirmisher | -8/Materials Hacker-Skirmisher | -8/Garrison Hacker-Skirmisher | -8/Materials Hacker-Skirmisher | -8/Garrison Hacker-Skirmisher | -7/Factory Hacker-Gunner | -7/Lower Caves Derelict-Gunner | -7/Lower Caves Derelict-Gunner | -7/Data Miner Derelict-Gunner | -6/Proximity Caves Resources | -11 -10 -10 -10 -9 -8 -8 -8 -8 -7 -7 -7 -7 -6 ----------- Run | Scr Mat Min Exi Min Mat Gar Mat Gar Fac Low Low Dat Pro Matter Collected 3010 | 192 163 . 83 78 507 . 259 565 381 513 127 . 142 Remotely . | . . . . . . . . . . . . . . Salvage Created 6460 | . 258 . . 71 1141 572 921 739 1256 1181 59 . 262 Parts 345 | . 16 . . 2 62 26 53 39 73 59 5 . 10 Haulers Intercepted . | . . . . . . . . . . . . . . Recyclers Shooed . | . . . . . . . . . . . . . . Parts Field Recycled . | . . . . . . . . . . . . . . Retrieved Matter . | . . . . . . . . . . . . . . Parts Self-Destructed . | . . . . . . . . . . . . . . Prevented . | . . . . . . . . . . . . . . Kills | -11 -10 -10 -10 -9 -8 -8 -8 -8 -7 -7 -7 -7 -6 ------- Run | Scr Mat Min Exi Min Mat Gar Mat Gar Fac Low Low Dat Pro Combat Hostiles Destroyed 161 | . 6 . . 2 29 24 32 23 19 18 2 . 6 Melee 2 | . . . . . 1 1 . . . . . . . Guns 67 | . 6 . . . 5 . 8 17 13 15 1 . 2 Cannons 72 | . . . . . 15 23 23 . 6 . 1 . 4 AOE 14 | . . . . 2 5 . 1 4 . 2 . . . Classes Destroyed 13 | . 3 . . 1 6 . 1 . 1 1 . . . Worker 3 | . . . . . 3 . . . . . . . . Recycler 1 | . . . . . 1 . . . . . . . . Mechanic 1 | . . . . . . . 1 . . . . . . Operator 5 | . . . . . 2 . 3 . . . . . . Watcher 15 | . 2 . . . 5 . 5 . 3 . . . . Swarmer 32 | . 2 . . . 6 8 6 8 . 1 1 . . Grunt 66 | . 4 . . 2 9 12 13 10 8 6 1 . 1 Brawler 5 | . . . . . 1 . 1 1 . 1 . . 1 Duelist 9 | . . . . 1 1 . 1 . 1 3 . . 2 Sentry 39 | . . . . . 10 4 10 4 7 2 . . 2 Hunter 3 | . . . . . 2 . 1 . . . . . . Programmer 3 | . . . . . . . . . 3 . . . . Thug 1 | . . . . . . . . . . 1 . . . Savage 3 | . . . . . . . . . . 3 . . . Mutant 1 | . . . . . . . . . . 1 . . . Best Kill Streak 9 | . 2 . . 2 9 5 5 5 2 4 1 . 5 Combat Bots Only 5 | . 2 . . 2 5 5 3 5 2 4 1 . 5 Max Kills in Single Turn 2 | . 2 . . 1 2 1 1 2 1 2 1 . 1 Gunslinging 1 | . 1 . . . . . . . . 1 . . . Exploded 1 | . . . . 1 1 . 1 1 . 1 . . . Melee 1 | . . . . . 1 1 . . . . . . . Uniques/NPCs Destroyed . | . . . . . . . . . . . . . . Combat | -11 -10 -10 -10 -9 -8 -8 -8 -8 -7 -7 -7 -7 -6 -------- Run | Scr Mat Min Exi Min Mat Gar Mat Gar Fac Low Low Dat Pro Damage Taken 5885 | . 125 381 . 104 877 259 567 669 555 627 . . 1721 Core 1233 | . 31 110 . 57 163 35 56 76 80 43 . . 582 Absorbed by Shields 2 | . . . . . . 2 . . . . . . . Core Remaining (%) 53 | 100 . . . 20 . . . 40 . . . . . Volleys Fired 263 | . 22 6 . 3 37 . 38 53 48 31 4 . 21 Largest 4 | . 2 2 . 1 3 . 3 3 4 4 4 . 4 Hottest 216 | . 40 120 . 33 116 . 124 124 216 210 177 . 177 Shots Fired 785 | . 31 8 . 6 99 62 130 132 124 116 14 . 63 Gun 469 | . 31 2 . . 53 . 39 126 81 110 8 . 19 Cannon 276 | . . . . . 35 62 82 . 43 4 6 . 44 Launcher 34 | . . . . 6 11 . 9 6 . 2 . . . Special 6 | . . 6 . . . . . . . . . . . Kinetic 553 | . 31 2 . . 72 62 90 117 45 59 12 . 63 Thermal 198 | . . 6 . . 16 . 31 9 79 55 2 . . Explosive 34 | . . . . 6 11 . 9 6 . 2 . . . Electromagnetic . | . . . . . . . . . . . . . . Robot Hit Streak 55 | . 9 . . 8 33 16 55 47 43 34 14 . 12 Robot Miss Streak 7 | . 1 . . . 1 3 1 1 3 2 7 . 1 Penetration Max . | . . . . . . . . . . . . . . Secondary Targets 8 | . 1 . . . . . . 1 . 6 . . . Max Gunslinging Chain 2 | . 1 . . . . . . 1 . 2 . . . Autonomous 180 | . . . . . 35 62 83 . . . . . . Shots Hit Robots 663 | . 23 . . 3 105 54 123 99 113 88 5 . 50 Core Hits 380 | . 14 . . 7 56 23 49 51 86 74 3 . 17 Critical Hits 14 | . . . . . 2 2 6 . 2 2 . . . Critical Kills 7 | . . . . . 1 . 4 . . 2 . . . Critical Parts Destroyed 6 | . . . . . 1 2 2 . 1 . . . . Melee Attacks 34 | . . . . . 21 1 2 10 . . . . . Impact 34 | . . . . . 21 1 2 10 . . . . . Slashing . | . . . . . . . . . . . . . . Piercing . | . . . . . . . . . . . . . . Sneak Attacks 2 | . . . . . 2 . . . . . . . . Combat Hostiles 1 | . . . . . 1 . . . . . . . . Follow-up Attacks . | . . . . . . . . . . . . . . Damage Inflicted 24518 | . 266 . . 314 4520 3929 7407 2382 2130 2150 106 . 1314 Guns 6569 | . 266 . . . 456 . 577 1307 1522 1973 50 . 418 Cannons 14626 | . . . . . 2572 3890 6580 . 608 24 56 . 896 Explosions 2012 | . . . . 314 772 . 194 579 . 153 . . . Melee 1311 | . . . . . 720 39 56 496 . . . . . Ramming . | . . . . . . . . . . . . . . Kinetic 18075 | . 266 . . . 2803 3890 6713 1189 735 1083 82 . 1314 Thermal 3120 | . . . . . 225 . 444 118 1395 914 24 . . Explosive 2012 | . . . . 314 772 . 194 579 . 153 . . . Electromagnetic . | . . . . . . . . . . . . . . Impact 1311 | . . . . . 720 39 56 496 . . . . . Slashing . | . . . . . . . . . . . . . . Piercing . | . . . . . . . . . . . . . . Highest Corruption 6 | . 2 6 6 6 . . . . . 3 3 3 6 Average Corruption 3 | . 1 2 6 6 . . . . . 3 3 3 3 Corruption Purged . | . . . . . . . . . . . . . . Effects 153 | . 7 10 42 25 . . . . . 25 23 3 18 Message Errors 38 | . . 1 11 7 . . . . . 6 7 1 5 Matter Fused 44 | . . 2 14 5 . . . . . 10 8 1 4 Heat Flow Errors 18 | . 1 1 4 4 . . . . . 3 2 . 3 Energy Discharges 27 | . 3 5 7 2 . . . . . 3 3 1 3 Data Loss (minor) 14 | . 1 1 2 3 . . . . . 3 3 . 1 Data Loss (major) 5 | . . . 4 1 . . . . . . . . . Misfires 3 | . . . . 3 . . . . . . . . . Targeting Errors 4 | . 2 . . . . . . . . . . . 2 Overload Shots . | . . . . . . . . . . . . . . Overflow Damage 2332 | . . . . . 365 628 1311 26 . . . . 2 Projectiles 2144 | . . . . . 203 628 1311 . . . . . 2 Explosions 33 | . . . . . 9 . . 24 . . . . . Melee 155 | . . . . . 153 . . 2 . . . . . Knockbacks 57 | . . . . . 7 18 24 . 1 . . . 7 Impact 2 | . . . . . 2 . . . . . . . . Kinetic 52 | . . . . . 5 17 22 . 1 . . . 7 Secondary 3 | . . . . . . 1 2 . . . . . . Self-Inflicted Damage 194 | . . . . 91 69 . . . . 34 . . . Shots 7 | . . . . 4 2 . . . . 1 . . . Rammed . | . . . . . . . . . . . . . . Targets Rammed . | . . . . . . . . . . . . . . Kicked . | . . . . . . . . . . . . . . Crushed . | . . . . . . . . . . . . . . Highest Temperature 723 | . 195 243 223 229 265 . 285 234 298 382 192 . 723 Average Temperature 113 | . 57 48 98 107 70 . 103 53 71 150 66 . 318 Received Heat Transfer 1991 | . 111 . . 12 207 132 279 387 270 248 . . 345 Effects 39 | . . . . . . . . 1 . 6 . . 32 Shutdowns 7 | . . . . . . . . . . 1 . . 6 Energy Bleed 4 | . . . . . . . . 1 . 2 . . 1 Interference 7 | . . . . . . . . . . 3 . . 4 Matter Decay 2 | . . . . . . . . . . . . . 2 Short Circuit 1 | . . . . . . . . . . . . . 1 Damage (minor) 5 | . . . . . . . . . . . . . 5 Damage (major) 10 | . . . . . . . . . . . . . 10 Damage (core) 3 | . . . . . . . . . . . . . 3 Siege Activations . | . . . . . . . . . . . . . . Robots Corrupted . | . . . . . . . . . . . . . . Combat Hostiles . | . . . . . . . . . . . . . . Parts Fried 6 | . . . . . 5 . . 1 . . . . . Impact Corruptions 12 | . . . . . 9 . 1 2 . . . . . Robots Melted 1 | . . . . . . . . . . 1 . . . Combat Hostiles 1 | . . . . . . . . . . 1 . . . Parts Melted 15 | . . . . . . . 4 . 6 5 . . . Heat Transferred 6072 | . . . . . 481 . 962 259 2742 1591 37 . . Parts Sabotaged . | . . . . . . . . . . . . . . Parts Stolen . | . . . . . . . . . . . . . . Parts Stripped . | . . . . . . . . . . . . . . Power Chain Reactions . | . . . . . . . . . . . . . . Missiles Intercepted . | . . . . . . . . . . . . . . Alert | -11 -10 -10 -10 -9 -8 -8 -8 -8 -7 -7 -7 -7 -6 ------- Run | Scr Mat Min Exi Min Mat Gar Mat Gar Fac Low Low Dat Pro Peak Influence 743 | . 130 . . 55 224 671 311 743 415 . . . . Initial 289 | . . . . . . 13 239 55 289 . . . . Average 149 | . 64 . . 25 39 413 119 503 133 . . . . Maximum Alert Level 3 | . . . . . 1 2 1 3 2 . . . . Low Security (%) 74 | 100 100 100 . 100 99 19 79 14 68 . . . . Level 1 13 | . . . . . . 16 20 21 30 . . . . Level 2 9 | . . . . . . 63 . 41 . . . . . Level 3 2 | . . . . . . . . 22 . . . . . Level 4 . | . . . . . . . . . . . . . . Level 5 . | . . . . . . . . . . . . . . High Security . | . . . . . . . . . . . . . . Max Security . | . . . . . . . . . . . . . . Squads Dispatched 20 | . . . . . 7 . 6 . 6 . . . 1 Investigation 4 | . . . . . 1 . 1 . 2 . . . . Extermination 3 | . . . . . . . . . 3 . . . . Reinforcement 5 | . . . . . 3 . 1 . 1 . . . . Assault 1 | . . . . . . . . . . . . . 1 Garrison 7 | . . . . . 3 . 4 . . . . . . Intercept . | . . . . . . . . . . . . . . Construction Impeded 1 | . . . . . 1 . . . . . . . . Haulers Reinforced . | . . . . . . . . . . . . . . Stealth | -11 -10 -10 -10 -9 -8 -8 -8 -8 -7 -7 -7 -7 -6 --------- Run | Scr Mat Min Exi Min Mat Gar Mat Gar Fac Low Low Dat Pro Distress Signals 5 | . . . . . 4 . 1 . . . . . . Communications Jammed . | . . . . . . . . . . . . . . Distress Signals . | . . . . . . . . . . . . . . Times Spotted 201 | . 9 . . 2 44 24 43 23 22 21 2 . 11 Peak Tracking Total 8 | . 3 . . 2 6 5 3 8 3 7 1 . 8 Tactical Retreats 12 | . . . . . 2 4 4 . 1 1 . . . Traps | -11 -10 -10 -10 -9 -8 -8 -8 -8 -7 -7 -7 -7 -6 ------- Run | Scr Mat Min Exi Min Mat Gar Mat Gar Fac Low Low Dat Pro Traps Triggered 21 | . 2 . . . . 4 5 6 4 . . . . Indirectly . | . . . . . . . . . . . . . . Trap Hack Attempts . | . . . . . . . . . . . . . . Triggered . | . . . . . . . . . . . . . . Disarmed 3 | . . . . . 3 . . . . . . . . Reprogrammed 4 | . . . . . 4 . . . . . . . . Reused . | . . . . . . . . . . . . . . Traps Extracted . | . . . . . . . . . . . . . . Installed . | . . . . . . . . . . . . . . Triggered . | . . . . . . . . . . . . . . Machines | -11 -10 -10 -10 -9 -8 -8 -8 -8 -7 -7 -7 -7 -6 ---------- Run | Scr Mat Min Exi Min Mat Gar Mat Gar Fac Low Low Dat Pro Machines Disabled 18 | . 1 . . 1 4 2 3 4 1 1 . . 1 Max in Single Turn 2 | . 1 . . 1 2 1 2 1 1 1 . . 1 Garrison Relay 4 | . . . . . . . . 4 . . . . . Machines Sabotaged . | . . . . . . . . . . . . . . Garrisons Compromised . | . . . . . . . . . . . . . . Overloaded Fab Kills . | . . . . . . . . . . . . . . Fab Network Shutdowns . | . . . . . . . . . . . . . . Hacking | -11 -10 -10 -10 -9 -8 -8 -8 -8 -7 -7 -7 -7 -6 --------- Run | Scr Mat Min Exi Min Mat Gar Mat Gar Fac Low Low Dat Pro Machines Accessed 33 | . 4 . 4 1 7 . 9 . 1 2 1 4 . Terminals 18 | . 4 . . 1 6 . 6 . 1 . . . . Fabricators . | . . . . . . . . . . . . . . Repair Stations . | . . . . . . . . . . . . . . Recycling Units 1 | . . . . . . . 1 . . . . . . Scanalyzers 1 | . . . . . . . 1 . . . . . . Garrison Access 2 | . . . . . 1 . 1 . . . . . . Total Hacks 131 | . 12 . 28 3 26 . 33 . 1 2 1 25 . Successful 120 | . 11 . 28 2 23 . 27 . 1 2 1 25 . Failed 11 | . 1 . . 1 3 . 6 . . . . . . Catastrophic . | . . . . . . . . . . . . . . Database Lockouts . | . . . . . . . . . . . . . . Manual 7 | . . . 7 . . . . . . . . . . Terminals 64 | . 12 . . 3 23 . 25 . 1 . . . . Fabricators . | . . . . . . . . . . . . . . Repair Stations . | . . . . . . . . . . . . . . Recycling Units 2 | . . . . . . . 2 . . . . . . Scanalyzers 4 | . . . . . . . 4 . . . . . . Garrison Access 5 | . . . . . 3 . 2 . . . . . . Terminal Hacks 110 | . 11 . 28 2 21 . 19 . 1 2 1 25 . Record 54 | . 2 . 28 . 6 . 6 . . 1 . 11 . Part Schematic 6 | . . . . . . . . . . . . 6 . Robot Schematic 5 | . . . . . . . . . . . . 5 . Robot Analysis 3 | . 1 . . . . . 2 . . . . . . Prototype ID Bank 4 | . 1 . . . . . . . . . . 3 . Open Door 2 | . . . . . . . . . . 1 1 . . Branch Access Points 1 | . 1 . . . . . . . . . . . . Emergency Access Points 2 | . 2 . . . . . . . . . . . . Terminal Index 1 | . . . . . 1 . . . . . . . . Repair Station Index 1 | . . . . . 1 . . . . . . . . Alert Level 5 | . . . . . 2 . 2 . 1 . . . . Unreport Threat 1 | . . . . . 1 . . . . . . . . Locate Traps 4 | . . . . . 2 . 2 . . . . . . Disarm Traps 1 | . . . . . 1 . . . . . . . . Reprogram Traps 1 | . . . . . 1 . . . . . . . . Dispatch Records 1 | . . . . 1 . . . . . . . . . Surveillance Status 2 | . . . . . 2 . . . . . . . . Transport Status 1 | . . . . . 1 . . . . . . . . Investigation Status 2 | . 1 . . . . . 1 . . . . . . Reinforcement Status 2 | . 1 . . . . . 1 . . . . . . Assault Status 1 | . 1 . . . . . . . . . . . . Recall Investigation 2 | . . . . . . . 2 . . . . . . Recall Reinforcements 1 | . . . . . . . 1 . . . . . . Recall Assault 1 | . . . . . . . 1 . . . . . . Hauler Manifests 2 | . . . . . 1 . 1 . . . . . . Registered Components 2 | . 1 . . . 1 . . . . . . . . Zone Layout 2 | . . . . 1 1 . . . . . . . . Fabricator Hacks . | . . . . . . . . . . . . . . Repair Station Hacks . | . . . . . . . . . . . . . . Recycling Unit Hacks 2 | . . . . . . . 2 . . . . . . Recycle Component 1 | . . . . . . . 1 . . . . . . Process 1 | . . . . . . . 1 . . . . . . Scanalyzer 4 | . . . . . . . 4 . . . . . . Insert Component 2 | . . . . . . . 2 . . . . . . Analyze 2 | . . . . . . . 2 . . . . . . Garrison Access Hacks 4 | . . . . . 2 . 2 . . . . . . Unlock Access 2 | . . . . . 1 . 1 . . . . . . Coupler Status 2 | . . . . . 1 . 1 . . . . . . Unauthorized Hacks . | . . . . . . . . . . . . . . Terminals . | . . . . . . . . . . . . . . Fabricators . | . . . . . . . . . . . . . . Repair Stations . | . . . . . . . . . . . . . . Recycling Units . | . . . . . . . . . . . . . . Scanalyzers . | . . . . . . . . . . . . . . Garrison Access . | . . . . . . . . . . . . . . Data Cores Recovered 2 | . . . . . 1 . 1 . . . . . . Used . | . . . . . . . . . . . . . . Hacking Detections 10 | . . . . . 5 . 5 . . . . . . Full Trace Events 2 | . . . . . 1 . 1 . . . . . . Feedback Events . | . . . . . . . . . . . . . . Feedback Blocked . | . . . . . . . . . . . . . . Robot Schematics Acquired 5 | . . . . . . . . . . . . 5 . Robots Built . | . . . . . . . . . . . . . . Matter . | . . . . . . . . . . . . . . Time . | . . . . . . . . . . . . . . Total Robot Build Rating . | . . . . . . . . . . . . . . Part Schematics Acquired 8 | . . . . . . . 2 . . . . 6 . Parts Built . | . . . . . . . . . . . . . . Matter . | . . . . . . . . . . . . . . Time . | . . . . . . . . . . . . . . Total Part Build Rating . | . . . . . . . . . . . . . . Parts Repaired . | . . . . . . . . . . . . . . Time . | . . . . . . . . . . . . . . Parts Recycled 1 | . . . . . . . 1 . . . . . . Recycled Matter 176 | . . . . . . . 176 . . . . . . Retrieved Matter . | . . . . . . . . . . . . . . Retrieved Components . | . . . . . . . . . . . . . . Parts Scanalyzed 2 | . . . . . . . 2 . . . . . . Part Schematics Acquired 2 | . . . . . . . 2 . . . . . . Parts Damaged . | . . . . . . . . . . . . . . Bothacking | -11 -10 -10 -10 -9 -8 -8 -8 -8 -7 -7 -7 -7 -6 ------------ Run | Scr Mat Min Exi Min Mat Gar Mat Gar Fac Low Low Dat Pro Used RIF Installer 2 | . . . . . . 1 . 1 . . . . . Zone Cloak 1 | . . . . . . . . 1 . . . . . Robots Hacked . | . . . . . . . . . . . . . . Non-combat . | . . . . . . . . . . . . . . Combat . | . . . . . . . . . . . . . . Robot Hacks Applied . | . . . . . . . . . . . . . . Relay Couplers Released 17 | . . . . . . . . 17 . . . . . Machine Destruction 17 | . . . . . . . . 17 . . . . . Robots Rewired . | . . . . . . . . . . . . . . Allies Hacked . | . . . . . . . . . . . . . . Hacks Repelled . | . . . . . . . . . . . . . . Allies | -11 -10 -10 -10 -9 -8 -8 -8 -8 -7 -7 -7 -7 -6 -------- Run | Scr Mat Min Exi Min Mat Gar Mat Gar Fac Low Low Dat Pro Total Allies 5 | . . 4 . . . . . . . . . . 1 Largest Group 3 | . . 3 2 2 1 . . . . . . . 1 Highest-Rated Group 94 | . . 40 32 32 16 . . . . . . . 94 Highest-Rated Ally 94 | . . 31 16 16 16 . . . . . . . 94 Total Orders 1 | . . . . 1 . . . . . . . . . AID 1 | . . . . 1 . . . . . . . . . Ally Attacks 27 | . . . . 5 1 . . . . . . . 21 Total Damage 1026 | . . . . 57 . . . . . . . . 969 Kills 4 | . . . . . . . . . . . . . 4 Allies Corrupted . | . . . . . . . . . . . . . . Allies Melted . | . . . . . . . . . . . . . . Intel | -11 -10 -10 -10 -9 -8 -8 -8 -8 -7 -7 -7 -7 -6 ------- Run | Scr Mat Min Exi Min Mat Gar Mat Gar Fac Low Low Dat Pro Robot Analysis Total 3 | . 1 . . . . . 2 . . . . . . Derelict Logs Recovered 4 | . . . . . . . . . . 2 2 . . Drone Launches . | . . . . . . . . . . . . . . Drone Recoveries . | . . . . . . . . . . . . . . Exploration | -11 -10 -10 -10 -9 -8 -8 -8 -8 -7 -7 -7 -7 -6 ------------- Run | Scr Mat Min Exi Min Mat Gar Mat Gar Fac Low Low Dat Pro Turns Passed 22686 | 110 854 1317 1382 893 3492 965 3544 1882 2270 2354 2132 185 1306 Spaces Moved 13212 | 99 627 899 768 436 1822 744 2108 1316 1023 1284 1247 111 728 Core 78 | 70 . . . . . . . 8 . . . . . Treads 4231 | . . . . . . . . . 861 1284 1247 111 728 Legs 5504 | 29 627 899 768 436 722 . 1052 971 . . . . . Wheels 2900 | . . . . . 1100 744 1056 . . . . . . Hover . | . . . . . . . . . . . . . . Flight 499 | . . . . . . . . 337 162 . . . . Fastest Speed 34 | 50 120 120 150 180 110 110 110 34 34 168 168 168 168 Average Speed 143 | 78 120 123 179 180 137 113 126 119 160 169 168 168 168 Slowest Speed 750 | 120 120 150 180 180 390 130 160 750 520 170 168 168 168 Overloaded Moves . | . . . . . . . . . . . . . . Propulsion Burnouts . | . . . . . . . . . . . . . . Robots Hopped . | . . . . . . . . . . . . . . Cave-ins Triggered 1 | . . 1 . . . . . . . . . . . Exploration Rate (%) 76 | 4 78 100 93 73 88 72 95 84 21 97 99 73 87 Regions Visited 13 Branch Regions 7 Pre-discovered Areas 3 | . . . 1 . . . . . . . 1 1 . Known Exits Taken 11 | 1 1 1 1 1 1 . 1 . 1 1 1 1 . Unknown Exits Taken . | . . . . . . . . . . . . . . Scrap Searched 11 | . . 2 . 1 . . . . . 5 1 . 2 Spaces Dug 15 | . . 4 . . . . 11 . . . . . . Terrain Destroyed 266 | . . 5 . 71 82 12 50 8 5 19 4 . 10 Melee . | . . . . . . . . . . . . . . Projectile 45 | . . 5 . . 3 12 4 . 5 2 4 . 10 AOE 221 | . . . . 71 79 . 46 8 . 17 . . . Terrain Rammed . | . . . . . . . . . . . . . . Walls Destroyed . | . . . . . . . . . . . . . . Machines Disabled . | . . . . . . . . . . . . . . Actions | -11 -10 -10 -10 -9 -8 -8 -8 -8 -7 -7 -7 -7 -6 --------- Run | Scr Mat Min Exi Min Mat Gar Mat Gar Fac Low Low Dat Pro Total 16367 | 128 699 1089 774 542 2725 865 2931 1517 1553 1393 1274 110 767 Wait 2576 | 22 45 181 . 102 813 90 756 62 444 36 9 . 16 Move 13197 | 98 626 898 767 435 1821 742 2107 1314 1022 1283 1246 110 728 Hop . | . . . . . . . . . . . . . . Pick Up 71 | 3 3 3 2 1 11 . 9 4 17 11 6 . 1 Fast Attach 25 | 5 1 . . . 3 . 2 12 1 1 . . . Attach 31 | . 2 . 2 . 11 . 3 . 10 2 . . 1 Detach 5 | . . . . . 3 . . 2 . . . . . Swap 37 | . . 1 3 . 4 . 6 3 8 7 5 . . Drop 54 | . . . . . 1 . 8 27 3 11 4 . . Fire 263 | . 22 6 . 3 37 . 38 53 48 31 4 . 21 Melee 34 | . . . . . 21 1 2 10 . . . . . Ram . | . . . . . . . . . . . . . . Kick . | . . . . . . . . . . . . . . Crush . | . . . . . . . . . . . . . . Escape Stasis 62 | . . . . . . 32 . 30 . . . . . Rewire 12 | . . . . 1 . . . . . 11 . . . Trap . | . . . . . . . . . . . . . . Miscellaneous . | . . . . . . . . . . . . . . Route ------- -11/Scrapyard -10/Materials (discovered 4 exits: *Mat x3 / *Min) -10/Mines (discovered 3 exits: *Mat x2 / *Exi) -10/Exiles (discovered 2 exits: *Min x2) -9/Mines -8/Materials (discovered 4 exits: *Fac x3 / Gar) -8/Garrison (discovered 3 exits: *Mat x3) -8/Materials (discovered 4 exits: *Fac x3 / Gar) -8/Garrison (discovered 3 exits: *Fac x3) -7/Factory -7/Lower Caves -7/Lower Caves (discovered 2 exits: *Fac / *Dat) -7/Data Miner -6/Proximity Caves (discovered 1 exit: *Fac) History --------- Turn | Location | Event 5 | -11/Scrapyard | Identified exit to Materials 5 | -11/Scrapyard | Discovered exit to Materials (range 15) 111 | -11/Scrapyard | Entered Materials 111 | -10/Materials | Evolved 1 slot: Utility x1 204 | -10/Materials | Identified exit to Materials 204 | -10/Materials | Discovered exit to Materials (range 12) 300 | -10/Materials | Build established: Hacker-Mutant 531 | -10/Materials | Discovered exit to Materials (range 10) 589 | -10/Materials | Identified exit to Mines 691 | -10/Materials | Discovered exit to Materials (range 9) 965 | -10/Materials | Entered Mines 1156 | -10/Mines | Discovered exit to Materials (range 8) 1210 | -10/Mines | Deemed a non-threat by the Exiles lab entrance 1211 | -10/Mines | Identified exit to Exiles 1211 | -10/Mines | Discovered exit to Exiles (range 5) 1266 | -10/Mines | Received a Mining Laser from a helpful Derelict 1433 | -10/Mines | Received a Rocket Launcher from a helpful Derelict 1613 | -10/Mines | Assisted by bots powering up and referring to "LRC-V3" 1849 | -10/Mines | Discovered exit to Materials (range 5) 2060 | -10/Mines | Crushed by falling debris 2060 | -10/Mines | Core integrity fell below 50% 2091 | -10/Mines | Lost 3 parts (1n1u1w) 2282 | -10/Mines | Entered Exiles 2282 | -10/Exiles | Accompanied by 2 allies 2303 | -10/Exiles | Identified exit to Mines 2303 | -10/Exiles | Discovered exit to Mines (range 15) 2357 | -10/Exiles | Met 8R-AWN 2395 | -10/Exiles | Met EX-HEX 2473 | -10/Exiles | Met EX-DEC 2528 | -10/Exiles | Learned location of Zion (-6) 2680 | -10/Exiles | Discovered exit to Mines (range 14) 2831 | -10/Exiles | Visited The Gauntlet 3096 | -10/Exiles | Met EX-BIN 3136 | -10/Exiles | Aligned with FarCom system 3137 | -10/Exiles | Given EX-Vault access code 3442 | -10/Exiles | Opened EX-Vault 3447 | -10/Exiles | Found Prototype Ballistic Cannon 3504 | -10/Exiles | Warned to stay clear of 0b10 Research branches 3664 | -10/Exiles | Left Exiles lab with AWS/Autocannon 3664 | -10/Exiles | Entered Mines 3664 | -9/Mines | Accompanied by 2 allies 4007 | -9/Mines | A weapon hastily lodged in a ceiling crevice suddenly fell to the ground 4536 | -9/Mines | Identified exit to Materials 4536 | -9/Mines | Discovered exit to Materials (range 12) 4557 | -9/Mines | Entered Materials 4557 | -8/Materials | Accompanied by 1 ally 4557 | -8/Materials | Evolved 4 slots: Power x1, Propulsion x1, Weapon x2 4558 | -8/Materials | Identified AWS/Autocannon 5230 | -8/Materials | Build established: Hacker-Skirmisher 5359 | -8/Materials | Identified exit to Factory 5359 | -8/Materials | Discovered exit to Factory (range 13) 5705 | -8/Materials | Build established: Hacker-Mutant 5932 | -8/Materials | Garrison activated, responded to threat 6002 | -8/Materials | Lost 5 parts (1p1n3w) 6032 | -8/Materials | Discovered exit to Factory (range 16) 6679 | -8/Materials | Build established: Hacker-Skirmisher 6926 | -8/Materials | Discovered exit to Factory (range 8) 8015 | -8/Materials | Identified exit to Garrison 8049 | -8/Materials | Entered Garrison 8112 | -8/Garrison | Triggered checkpoint 8151 | -8/Garrison | Triggered checkpoint 8188 | -8/Garrison | Triggered checkpoint 8193 | -8/Garrison | Triggered checkpoint 8324 | -8/Garrison | Identified exit to Materials 8324 | -8/Garrison | Discovered exit to Materials (range 14) 8347 | -8/Garrison | Installed Relay Interface Framework 8392 | -8/Garrison | Triggered checkpoint 8560 | -8/Garrison | Discovered exit to Materials (range 9) 8610 | -8/Garrison | Triggered checkpoint 8777 | -8/Garrison | Discovered exit to Materials (range 10) 8820 | -8/Garrison | Triggered checkpoint 9014 | -8/Garrison | Entered Materials 9480 | -8/Materials | Garrison activated, responded to threat 10156 | -8/Materials | Discovered exit to Factory (range 13) 10646 | -8/Materials | Discovered exit to Factory (range 3) 11533 | -8/Materials | Build established: Hacker-Mutant 11577 | -8/Materials | Discovered exit to Factory (range 11) 12476 | -8/Materials | Garrison activated, responded to threat 12557 | -8/Materials | Identified exit to Garrison 12558 | -8/Materials | Entered Garrison 12596 | -8/Garrison | Triggered checkpoint 12609 | -8/Garrison | Core integrity fell below 50% 12653 | -8/Garrison | Garrison Relay disabled 12713 | -8/Garrison | Triggered checkpoint 12714 | -8/Garrison | Triggered checkpoint 12828 | -8/Garrison | Triggered checkpoint 12879 | -8/Garrison | Lost 3 parts (1p2w) 13037 | -8/Garrison | Discovered exit to Factory (range 14) 13189 | -8/Garrison | Discovered exit to Factory (range 14) 13290 | -8/Garrison | Triggered checkpoint 13332 | -8/Garrison | Build established: Hacker-Skirmisher 13334 | -8/Garrison | Garrison Relay disabled 13606 | -8/Garrison | Triggered checkpoint 13663 | -8/Garrison | Garrison Relay disabled 13846 | -8/Garrison | Discovered exit to Factory (range 11) 13873 | -8/Garrison | Expanded RIF knowledge: Zone Cloak 13918 | -8/Garrison | Triggered checkpoint 13944 | -8/Garrison | Build established: Scavenger-Skirmisher 14011 | -8/Garrison | Garrison Relay disabled 14440 | -8/Garrison | Entered Factory 14440 | -7/Factory | Evolved 2 slots: Propulsion x2 14807 | -7/Factory | Build established: Hacker-Mutant 15129 | -7/Factory | Build established: Hacker-Skirmisher 16679 | -7/Factory | Identified exit to Lower Caves 16679 | -7/Factory | Discovered exit to Lower Caves (range 8) 16710 | -7/Factory | Entered Lower Caves 16868 | -7/Lower Caves | Encountered a Warlord checkpoint 17044 | -7/Lower Caves | Learned location of 1 exit from Factory 17066 | -7/Lower Caves | Build established: Hacker-Mutant 17403 | -7/Lower Caves | Attacked by a delusional Derelict stockpiling Unaware 17423 | -7/Lower Caves | Build established: Hacker-Gunner 17647 | -7/Lower Caves | Attracted the attention of an 0b10 outpost 17832 | -7/Lower Caves | Ambushed by wild Derelicts 18717 | -7/Lower Caves | Attracted the attention of an 0b10 checkpoint 19020 | -7/Lower Caves | Identified exit to Lower Caves 19020 | -7/Lower Caves | Discovered exit to Lower Caves (range 15) 19064 | -7/Lower Caves | Entered another Lower Caves area 19188 | -7/Lower Caves | Identified exit to Factory 19188 | -7/Lower Caves | Discovered exit to Factory (range 11) 20332 | -7/Lower Caves | Build established: Derelict-Gunner 20975 | -7/Lower Caves | Identified exit to Data Miner 20975 | -7/Lower Caves | Discovered exit to Data Miner (range 8) 21196 | -7/Lower Caves | Entered Data Miner 21196 | -7/Data Miner | Identified exit to Proximity Caves 21196 | -7/Data Miner | Discovered exit to Proximity Caves (range 6) 21245 | -7/Data Miner | Met Data Miner 21301 | -7/Data Miner | Learned location of Section 7 (-3) 21301 | -7/Data Miner | Acquired the access code to Warlord's prototype stash 21339 | -7/Data Miner | Received God Mode back door access code from Data Miner 21381 | -7/Data Miner | Entered Proximity Caves 21539 | -6/Proximity Caves | Attracted the attention of an 0b10 checkpoint 21540 | -6/Proximity Caves | Escorted by Enhanced Grunt 21748 | -6/Proximity Caves | Discovered exit to Factory (range 12) 22355 | -6/Proximity Caves | Spotted B-75 Beast 22366 | -6/Proximity Caves | Allies destroyed B-75 Beast 22629 | -6/Proximity Caves | Attracted the attention of an 0b10 outpost 22667 | -6/Proximity Caves | Core integrity fell below 50% 22679 | -6/Proximity Caves | Core integrity fell below 20% 22687 | -6/Proximity Caves | Destroyed by L-41 Fighter with Axe Last Messages --------------- 22674_ Overheating: Imp. Salvage Targeting Computer damaged (-10). 22674_ L-41 Fighter destroyed. 22675_ Power failure, Mic. Nuclear Core shutdown. 22676_ Hvy. Battle Rifle severed. 22676_ Launcher Guidance Computer destroyed. 22677_ Overheating: Core damaged (-84). 22679_ Overheating: Core damaged (-133). 22679_ Destroyed Imp. Deuterium Engine. 22681_ Overheating: System interference. 22681_ Gauss Cannon temporarily disabled. 22683_ Power failure, Mic. Nuclear Core shutdown. 22683_ Overheating: Matter decay (-7). 22684_ Overheating: Energy bleed (-27). 22684_ Gauss Cannon destroyed. 22685_ Overheating: Imp. Salvage Targeting Computer damaged (-3). 22685_ Overheating: Autogun damaged (-68). 22685_ Overheating: Sml. Storage Unit damaged (-15). 22685_ Overheating: Mic. Nuclear Core damaged (-6). 22686_ Overheating: Imp. Salvage Targeting Computer damaged (-1). 22686_ Overheating: Mic. Nuclear Core damaged (-10). Map ----- +----------------------------------------------------+ | | | | | | | | | | | | | | | | | | | ?????????????????????????????????????????????????? | | ?????????????????????????????????????????????????? | | ?????????????????????????????????????????????????? | | ?????????????????????????????????????????????????? | | ?????????????????????????????????????????????????? | | ?????????????????????????????????????????????????? | | ?????????????????????????????????????????????????? | | ?????????????????????????????????????????????????? | | ?????????????????????????????????????????????????? | | ?????????????????????????????????????????????????? | | ????????????????????????###??????????????????????? | | ????????????????????????#%=??????????????????????? | | ????????????????????????#*####???#???????????????? | | ????????????????????????#!#gl#? "#???????????????? | | #???????????????????????#[! # "#???????????????? | | ##?????????????????????##==% /g "#???????????????? | | ##??????????????##????#=@]%*/ ; #?????????????? | | ##?????????????? ???##%l% #% "#???????????????? | | ##??????????????# ####!#! ;% ?????#???????????? | | #??????????????# %!%##;#;;;# #???????????? | | ##?????????????# % % #??????????? | | ##????????????####### % ##### #?????? | | #??????????????##??### #?????? ??????????? | | # ##?????????????## ##??# #??????????????????? | | # ##?????????????## ##?# #?????%????????????? | | # #??????????????# % ### #??? % #??????????? | | #??????????????# % ## %#?? ??????????? | | ##???????????????# % # #??% ???????????? | | #?????????????????# #?? ??????????? | | # #????????????????## %### %???????????? | | ## ##?????????????????# % %#??????? ??????? | | ####?????????????????## ##?????? #?????? | | ##?????????????????## % ##?????# #?????? | | ##???????????????## % % #???## #?????? | | #???????????????# % % % #??# #??????? | | #???????#???????#% % #?? #???????? | | ##???? #??????# #?? #????##### | | ##?? ??????# % % % ### #???## # | | ##?? ??????## ## % % % #????# # | | #### #??????# ### % ##????# | | ## ##????# ###?# % ######## | +----------------------------------------------------+ Best States ------------- Heat Dissipation 61 Energy Generation 25 Energy Capacity 350 Matter Stores 500 Matter Capacity 500 Sight Range 16 Terrain Scan Density 210 Resistance: KI 35 Resistance: TH 35 Resistance: EX 35 Resistance: EM 35 Resistance: I 35 Resistance: S 35 Resistance: P 35 Core Shielding 20 Evasion (%) 63 Targeting Accuracy 8 Launcher Accuracy 20 Recoil Reduction 5 Salvage Targeting 2 Offensive Hacking 20 Item Schematics ----------------- Deuterium Engine | -8/Materials | Scanalyzed Hpw. Shotgun | -8/Materials | Scanalyzed Combat Drone Bay | -7/Data Miner | Free Lgt. Regenerative Plating | -7/Data Miner | Free Exp. Flexi-carbon Leg | -7/Data Miner | Free Exp. Terrain Scanner | -7/Data Miner | Free Cloaking Device | -7/Data Miner | Free Mni. Smartbomb Launcher | -7/Data Miner | Free Robot Schematics ------------------ S-27 Virus | -7/Data Miner | Free G-50 Soldier | -7/Data Miner | Free H-66 Slayer | -7/Data Miner | Free P-70 Sage | -7/Data Miner | Free I-36 Angel | -7/Data Miner | Free Fabricated ------------ Nothing Alien Tech Used ----------------- None Achievements -------------- Armchair Analyst Infiltrator Challenges ------------ None Game ------ Seed LargeCoolantBiocell Manual? 0 Play Time 03:10:04 Cumulative 35.6 hours Start 2021.09.15 @ 18:16:00 End 2021.09.18 @ 23:22:34 Sessions 5 Manual Loads 0 Difficulty Explorer Special Mode None Game No. 40 Rogue 31 Adventurer 0 Explorer 9 Win Type - Total 0 Types 0/0/0/0/0/0/0/0/0 Lore% 19 Gallery% 22 Achievement% 18 Wizard Run 0 Options --------- ASCII 0 Keyboard 0 Movement Vi Keybinds 0 Fullscreen 1 Font 18/SmallcapsGlow Map View 76x50 Tactical HUD 1 Map Filters NONE Filters NONE Steam 1 RUN: 4c21abba-9074-4655-ac9c-849db3e8bd79